bitfinex/quotes_SOLUSD_20241231
["timestamp","ask_amount","ask_price","bid_price","bid_amount"]
[1735672627957,8.09567432,195.06,194.99,28.09567432]
[1735672628941,8.09567432,195.07,195.0,8.09567432]
[1735672629753,8.09567432,195.07,195.0,20.91587432]
[1735672631225,8.09567432,195.07,194.99,20.0]
[1735672631226,8.09567432,195.05,194.99,20.0]
[1735672631446,8.09567432,195.04,194.97,12.822]
[1735672631646,8.09567432,195.01,194.96,6.3315]
[1735672632435,8.09567432,195.02,194.96,6.3315]
[1735672634131,23.776884,195.08,194.96,27.24987432]
[1735672634330,8.09567432,195.04,194.97,8.09567432]
[1735672635446,8.09567432,195.04,194.98,8.09567432]
[1735672635657,8.09567432,195.05,194.98,20.91697432]
[1735672635839,8.09567432,195.06,194.98,20.91697432]
[1735672636146,8.09567432,195.07,195.0,8.09567432]
[1735672637147,15.23095646,195.09,195.02,8.09567432]
[1735672637346,8.09567432,195.11,195.04,8.09567432]
[1735672637841,8.09567432,195.09,195.03,6.0946]
[1735672642649,8.09567432,195.07,195.03,6.0946]
[1735672642828,8.09567432,195.06,195.02,1.6258]
[1735672643952,8.09567432,195.07,195.02,1.6258]
[1735672644642,8.09567432,195.06,195.02,1.6258]
[1735672645055,8.09567432,195.06,194.99,8.09567432]
[1735672645272,8.09567432,195.03,194.98,6.0946]
[1735672645751,8.09567432,195.04,194.98,6.0946]
[1735672650079,8.09567432,195.03,194.98,6.0946]
[1735672652153,8.09567432,195.04,194.98,6.0946]
[1735672652347,8.09567432,195.03,194.98,6.0946]
[1735672652770,8.09567432,195.04,194.98,6.0946]
[1735672656801,8.09567432,195.05,194.98,14.19027432]
[1735672656962,25.412484,195.09,194.99,8.09567432]
[1735672657168,25.412484,195.09,194.99,20.91677432]
[1735672657169,8.09567432,195.06,194.99,20.91677432]
[1735672657477,8.09567432,195.05,194.98,14.19027432]
[1735672659473,8.09567432,195.04,194.98,6.0946]
[1735672659672,8.09567432,195.03,194.98,6.0946]
[1735672660267,8.09567432,195.04,194.98,6.0946]
[1735672660482,8.09567432,195.04,194.98,14.19027432]
[1735672660890,8.09567432,195.05,194.98,14.19027432]
[1735672661092,25.412484,195.09,194.99,8.09567432]
[1735672661093,8.09567432,195.06,194.99,8.09567432]
[1735672661291,8.09567432,195.05,194.98,27.01157432]
[1735672661497,8.09567432,195.04,194.98,18.9159]
[1735672661667,8.09567432,195.03,194.98,6.0946]
[1735672661869,8.09567432,194.99,194.93,6.0246]
[1735672663576,20.0,195.04,194.93,6.0246]
[1735672663782,8.09567432,195.0,194.93,6.0246]
[1735672664492,8.09567432,194.99,194.93,6.0246]
[1735672665273,23.776884,195.03,194.89,19.2003]
[1735672665274,8.09567432,194.96,194.89,19.2003]
[1735672665471,23.776884,195.03,194.89,19.2003]
[1735672665472,8.09567432,194.93,194.89,6.3729]
[1735672666781,26.77678301,194.99,194.89,6.3729]
[1735672666982,8.09567432,194.96,194.89,14.46857432]
[1735672667195,8.09567432,194.97,194.9,8.09567432]
[1735672669711,8.09567432,194.98,194.91,8.09567432]
[1735672669881,8.09567432,194.99,194.91,8.09567432]
[1735672670086,8.09567432,194.99,194.92,8.09567432]
[1735672670305,8.09567432,194.99,194.91,8.09567432]
[1735672671188,8.09567432,194.99,194.92,8.09567432]
[1735672671403,8.09567432,194.99,194.89,6.3729]
[1735672671404,8.09567432,195.0,194.93,8.09567432]
[1735672671606,8.09567432,194.99,194.92,8.09567432]
[1735672672315,8.09567432,194.99,194.91,20.92147432]
[1735672673513,8.09567432,194.98,194.91,20.92147432]
[1735672673688,8.09567432,194.97,194.89,14.46857432]
[1735672673883,8.09567432,194.96,194.89,14.46857432]
[1735672675410,8.09567432,194.94,194.89,6.3729]
[1735672675595,8.09567432,194.93,194.89,6.3729]
[1735672675799,8.09567432,194.91,194.88,1.5059]
[1735672676000,8.09567432,194.91,194.85,12.8301]
[1735672676191,8.09567432,194.93,194.86,8.09567432]
[1735672676522,8.09567432,194.92,194.85,20.92577432]
[1735672676816,8.09567432,194.9,194.84,6.3729]
[1735672677120,8.09567432,194.89,194.84,6.3729]
[1735672677412,8.09567432,194.9,194.84,6.3729]
[1735672677590,8.09567432,194.88,194.84,6.3729]
[1735672678199,8.09567432,194.89,194.84,6.3729]
[1735672678404,8.09567432,194.9,194.84,6.3729]
[1735672678602,8.09567432,194.89,194.84,6.3729]
[1735672679893,8.09567432,194.88,194.84,6.3729]
[1735672680503,8.09567432,194.87,194.83,1.5059]
[1735672680701,8.09567432,194.87,194.8,8.09567432]
[1735672684821,8.09567432,194.87,194.79,6.2131]
[1735672684822,7.13528214,194.96,194.84,8.09567432]
[1735672685140,8.09567432,194.9,194.84,8.09567432]
[1735672685295,8.09567432,194.91,194.84,8.09567432]
[1735672685501,8.09567432,194.93,194.86,8.09567432]
[1735672685703,8.09567432,194.94,194.88,1.5638]
[1735672685902,8.09567432,194.93,194.88,7.7769]
[1735672686620,8.09567432,194.94,194.88,7.7769]
[1735672687619,8.09567432,194.96,194.89,8.09567432]
[1735672687801,8.09567432,194.95,194.88,28.70047432]
[1735672688408,8.09567432,194.94,194.88,28.70047432]
[1735672689208,8.09567432,194.94,194.88,20.6048]
[1735672689402,8.09567432,194.94,194.88,7.7769]
[1735672689605,8.09567432,194.94,194.87,8.09567432]
[1735672689606,8.09567432,194.91,194.84,20.92627432]
[1735672690023,8.09567432,194.93,194.86,8.09567432]
[1735672690552,8.09567432,194.95,194.88,8.09567432]
[1735672690911,8.09567432,194.94,194.87,28.09567432]
[1735672692102,8.09567432,194.94,194.86,40.92487432]
[1735672692911,8.09567432,194.92,194.86,32.8292]
[1735672695221,8.09567432,194.93,194.86,32.8292]
[1735672695631,8.09567432,194.94,194.86,40.92487432]
[1735672695925,8.09567432,194.93,194.86,40.92487432]
[1735672696515,8.09567432,194.93,194.86,32.8292]
[1735672696716,8.09567432,194.92,194.86,32.8292]
[1735672697204,8.09567432,194.94,194.86,40.92487432]
[1735672698407,8.09567432,194.87,194.83,7.7769]
[1735672698630,8.09567432,194.84,194.83,6.2131]
[1735672698934,8.09567432,194.85,194.83,6.2131]
[1735672699301,8.09567432,194.86,194.83,6.2131]
[1735672700423,8.09567432,194.88,194.83,6.2131]
[1735672700617,8.09567432,194.89,194.83,6.2131]
[1735672700821,8.09567432,194.88,194.83,6.2131]
[1735672701319,8.09567432,194.87,194.83,6.2131]
[1735672701628,8.09567432,194.86,194.82,12.832]
[1735672701844,8.09567432,194.83,194.78,7.821]
[1735672702005,8.09567432,194.82,194.78,6.2878]
[1735672702211,8.09567432,194.82,194.75,8.09567432]
[1735672703067,8.09567432,194.82,194.76,12.836]
[1735672704605,39.03529728,194.9,194.76,12.836]
[1735672704606,8.09567432,194.81,194.76,12.836]
[1735672704824,1.6426,194.87,194.74,6.2878]
[1735672704825,8.09567432,194.79,194.74,6.2878]
[1735672705330,8.09567432,194.81,194.74,14.38347432]
[1735672705534,8.09567432,194.82,194.75,20.93257432]
[1735672706826,8.09567432,194.83,194.76,8.09567432]
[1735672707631,8.09567432,194.84,194.77,8.09567432]
[1735672709033,8.09567432,194.84,194.77,20.93077432]
[1735672711250,8.09567432,194.83,194.77,12.8351]
[1735672711837,8.09567432,194.82,194.77,12.8351]
[1735672714941,8.09567432,194.83,194.77,12.8351]
[1735672715150,8.09567432,194.82,194.75,8.09567432]
[1735672716225,8.09567432,194.83,194.76,8.09567432]
[1735672716430,8.09567432,194.83,194.77,8.09567432]
[1735672717341,23.776884,194.89,194.77,8.09567432]
[1735672717645,8.09567432,194.84,194.77,8.09567432]
[1735672720453,8.09567432,194.83,194.77,8.09567432]
[1735672721827,3.01290504,194.91,194.8,9.60767432]
[1735672722028,8.09567432,194.85,194.8,1.512]
[1735672722344,8.09567432,194.84,194.8,1.512]
[1735672723133,8.09567432,194.82,194.77,12.835]
[1735672723440,8.09567432,194.81,194.77,12.835]
[1735672723644,8.09567432,194.82,194.77,12.835]
[1735672723950,8.09567432,194.81,194.77,12.835]
[1735672724244,8.09567432,194.82,194.77,12.835]
[1735672727147,8.09567432,194.84,194.77,20.93067432]
[1735672727447,8.09567432,194.84,194.78,8.09567432]
[1735672729148,5.70777746,194.89,194.8,20.0]
[1735672729463,8.09567432,194.86,194.8,8.09567432]
[1735672730380,8.09567432,194.87,194.81,8.09567432]
[1735672730546,8.09567432,194.87,194.81,12.833]
[1735672732547,5.70777746,194.94,194.81,14.39607432]
[1735672732848,8.09567432,194.87,194.81,14.39607432]
[1735672733051,8.09567432,194.85,194.81,6.3004]
[1735672733257,8.09567432,194.86,194.81,6.3004]
[1735672735434,8.09567432,194.87,194.81,6.3004]
[1735672738057,8.09567432,194.87,194.81,14.39607432]
[1735672741235,8.09567432,194.86,194.81,6.3004]
[1735672741643,8.09567432,194.87,194.81,6.3004]
[1735672744054,8.09567432,194.85,194.81,6.3004]
[1735672746945,8.09567432,194.86,194.81,6.3004]
[1735672748284,5.70777746,194.94,194.82,31.87255832]
[1735672748460,8.09567432,194.91,194.84,8.09567432]
[1735672748766,8.09567432,194.9,194.83,9.65257432]
[1735672749468,8.09567432,194.9,194.83,22.48377432]
[1735672752361,5.70777746,194.94,194.83,1.5569]
[1735672752680,8.09567432,194.84,194.81,6.3004]
[1735672752843,5.70777746,194.95,194.81,6.3004]
[1735672753046,5.70777746,194.95,194.82,44.70485832]
[1735672753256,8.09567432,194.89,194.82,44.70485832]
[1735672754496,8.09567432,194.88,194.82,44.70485832]
[1735672754999,8.09567432,194.89,194.82,44.70485832]
[1735672755202,8.09567432,194.88,194.82,44.70485832]
[1735672755580,8.09567432,194.87,194.81,6.3004]
[1735672755787,8.09567432,194.86,194.81,6.3004]
[1735672755980,8.09567432,194.85,194.81,6.3004]
[1735672756178,8.09567432,194.86,194.81,6.3004]
[1735672758584,20.0,194.92,194.81,14.39607432]
[1735672758787,8.09567432,194.9,194.83,8.09567432]
[1735672759175,8.09567432,194.91,194.84,8.09567432]
[1735672759604,8.09567432,194.9,194.84,8.09567432]
[1735672760303,8.09567432,194.9,194.83,8.09567432]
[1735672761104,8.09567432,194.89,194.83,23.776884]
[1735672761291,8.09567432,194.89,194.82,20.92797432]
[1735672761476,8.09567432,194.9,194.83,8.09567432]
[1735672762384,8.09567432,194.9,194.84,8.09567432]
[1735672762980,8.09567432,194.9,194.83,8.09567432]
[1735672764287,8.09567432,194.9,194.83,31.87255832]
[1735672764477,8.09567432,194.9,194.84,8.09567432]
[1735672764684,5.70777746,194.95,194.86,8.09567432]
[1735672764999,8.09567432,194.92,194.85,31.87255832]
[1735672767107,5.70777746,194.95,194.86,8.09567432]
[1735672767288,8.09567432,194.94,194.88,14.19657432]
[1735672768426,8.09567432,194.94,194.88,27.02497432]
[1735672771893,8.09567432,194.91,194.85,20.92567432]
[1735672772394,23.776884,194.99,194.86,8.09567432]
[1735672772395,8.09567432,194.92,194.86,8.09567432]
[1735672772612,8.09567432,194.93,194.87,8.09567432]
[1735672774898,8.09567432,194.95,194.89,8.09567432]
[1735672775426,8.09567432,194.94,194.89,8.09567432]
[1735672775795,8.09567432,194.94,194.88,8.09567432]
[1735672777212,8.09567432,194.94,194.89,8.09567432]
[1735672777999,8.09567432,194.94,194.88,8.09567432]
[1735672778199,8.09567432,194.92,194.87,12.8286]
[1735672778717,8.09567432,194.93,194.87,28.09567432]
[1735672779016,8.09567432,194.94,194.87,28.09567432]
[1735672779213,8.09567432,194.93,194.87,28.09567432]
[1735672780410,8.09567432,194.9,194.84,8.0842]
[1735672780619,8.09567432,194.88,194.84,6.5633]
[1735672781323,8.09567432,194.9,194.84,6.5633]
[1735672782221,8.09567432,194.91,194.85,8.09567432]
[1735672782831,8.09567432,194.91,194.85,31.87255832]
[1735672783718,8.09567432,194.9,194.84,27.48947432]
[1735672784799,5.70777746,194.94,194.85,8.09567432]
[1735672784800,8.09567432,194.91,194.85,8.09567432]
[1735672786024,8.09567432,194.9,194.84,27.48947432]
[1735672786914,8.09567432,194.9,194.84,19.3938]
[1735672787218,8.09567432,194.9,194.84,27.48947432]
[1735672787518,8.09567432,194.91,194.85,8.09567432]
[1735672787820,8.09567432,194.88,194.79,8.1918]
[1735672788000,8.09567432,194.86,194.8,8.09567432]
[1735672788798,8.09567432,194.85,194.79,16.28747432]
[1735672789705,8.09567432,194.86,194.8,8.09567432]
[1735672789908,8.09567432,194.86,194.79,8.1918]
[1735672789909,8.09567432,194.85,194.79,16.28747432]
[1735672791206,20.0,194.9,194.81,8.09567432]
[1735672791420,8.09567432,194.87,194.81,8.09567432]
[1735672792222,8.09567432,194.87,194.8,8.09567432]
[1735672792399,8.09567432,194.87,194.81,8.09567432]
[1735672793212,8.09567432,194.88,194.81,8.09567432]
[1735672793716,8.09567432,194.89,194.83,8.09567432]
[1735672794103,8.09567432,194.88,194.82,8.09567432]
[1735672794305,8.09567432,194.87,194.81,8.09567432]
[1735672795319,8.09567432,194.88,194.82,8.09567432]
[1735672796230,8.09567432,194.87,194.81,20.92867432]
[1735672796426,8.09567432,194.88,194.82,8.09567432]
[1735672797529,8.09567432,194.87,194.81,20.92867432]
[1735672798505,8.09567432,194.88,194.82,8.09567432]
[1735672800339,5.70777746,194.94,194.84,8.09567432]
[1735672800540,8.09567432,194.91,194.86,8.09567432]
[1735672800752,8.09567432,194.92,194.87,8.09567432]
[1735672801461,8.09567432,194.92,194.86,8.09567432]
[1735672802037,8.09567432,194.89,194.83,20.92677432]
[1735672802233,8.09567432,194.88,194.83,12.8311]
[1735672802627,8.09567432,194.88,194.83,20.0]
[1735672802944,8.09567432,194.88,194.81,8.09567432]
[1735672803117,8.09567432,194.86,194.8,44.70585832]
[1735672804225,8.09567432,194.86,194.8,12.8333]
[1735672804449,8.09567432,194.86,194.82,20.0]
[1735672804654,8.09567432,194.87,194.82,20.0]
[1735672805248,8.09567432,194.88,194.82,28.09567432]
[1735672805448,8.09567432,194.87,194.82,20.0]
[1735672805636,8.09567432,194.88,194.82,20.0]
[1735672806056,8.09567432,194.88,194.82,28.09567432]
[1735672806452,8.09567432,194.87,194.82,20.0]
[1735672808356,8.09567432,194.86,194.82,20.0]
[1735672810568,8.09567432,194.86,194.8,8.09567432]
[1735672811160,8.09567432,194.87,194.8,8.09567432]
[1735672812770,8.09567432,194.87,194.79,21.0257]
[1735672812771,8.09567432,194.86,194.79,29.12137432]
[1735672812948,8.09567432,194.84,194.77,8.09567432]
[1735672813460,8.09567432,194.84,194.8,20.0]
[1735672814373,8.09567432,194.85,194.8,20.0]
[1735672815448,8.09567432,194.85,194.79,28.09567432]
[1735672817269,8.09567432,194.84,194.79,20.0]
[1735672817955,8.09567432,194.83,194.77,8.09567432]
[1735672818160,32.38269728,194.9,194.76,12.836]
[1735672818161,8.09567432,194.82,194.76,12.836]
[1735672818457,8.09567432,194.81,194.75,8.09567432]
[1735672818684,8.09567432,194.79,194.71,8.03520831]
[1735672818842,23.776884,194.87,194.71,16.13088263]
[1735672818843,8.09567432,194.77,194.71,16.13088263]
[1735672819550,8.09567432,194.77,194.71,8.09567432]
[1735672819963,8.09567432,194.76,194.7,20.93557432]
[1735672820152,8.09567432,194.77,194.71,8.09567432]
[1735672820681,8.09567432,194.78,194.71,8.09567432]
[1735672821245,8.09567432,194.77,194.71,8.09567432]
[1735672821678,8.09567432,194.76,194.7,20.93557432]
[1735672822567,8.09567432,194.77,194.71,8.09567432]
[1735672822772,5.70777746,194.83,194.71,8.09567432]
[1735672822773,8.09567432,194.78,194.71,8.09567432]
[1735672823155,8.09567432,194.78,194.72,8.09567432]
[1735672823353,8.09567432,194.77,194.71,8.09567432]
[1735672823752,8.09567432,194.78,194.71,8.09567432]
[1735672825167,8.09567432,194.77,194.71,8.09567432]
[1735672825675,8.09567432,194.77,194.7,8.09567432]
[1735672826351,8.09567432,194.78,194.71,8.09567432]
[1735672827372,8.09567432,194.77,194.71,8.09567432]
[1735672827576,8.09567432,194.77,194.7,8.09567432]
[1735672827756,8.09567432,194.75,194.69,6.4661]
[1735672827946,8.09567432,194.73,194.66,8.09567432]
[1735672828152,8.09567432,194.72,194.66,8.09567432]
[1735672831389,8.09567432,194.71,194.64,16.27997432]
[1735672831893,8.09567432,194.72,194.65,8.09567432]
[1735672832371,8.09567432,194.71,194.65,8.09567432]
[1735672833677,8.09567432,194.71,194.64,16.27997432]
[1735672834481,8.09567432,194.68,194.63,12.8447]
[1735672834679,8.09567432,194.68,194.61,8.09567432]
[1735672835372,8.09567432,194.66,194.6,9.70497432]
[1735672835962,8.09567432,194.67,194.61,8.09567432]
[1735672836663,8.09567432,194.66,194.6,1.6093]
[1735672836969,8.09567432,194.67,194.6,9.70497432]
[1735672837777,8.09567432,194.66,194.6,1.6093]
[1735672837968,8.09567432,194.67,194.6,9.70497432]
[1735672840685,8.09567432,194.66,194.6,9.70497432]
[1735672841566,8.09567432,194.67,194.61,8.09567432]
[1735672841761,8.09567432,194.68,194.61,20.94137432]
[1735672842165,8.09567432,194.69,194.62,8.09567432]
[1735672843385,7.13528214,194.73,194.62,8.09567432]
[1735672843585,8.09567432,194.68,194.62,8.09567432]
[1735672843773,8.09567432,194.68,194.61,20.94137432]
[1735672844386,8.09567432,194.67,194.61,12.8457]
[1735672845286,8.09567432,194.66,194.61,12.8457]
[1735672845476,8.09567432,194.67,194.61,12.8457]
[1735672846187,8.09567432,194.67,194.6,9.70497432]
[1735672846682,8.09567432,194.65,194.6,1.6093]
[1735672847684,8.09567432,194.65,194.59,6.575]
[1735672848583,8.09567432,194.65,194.59,14.67067432]
[1735672848887,8.09567432,194.65,194.59,6.575]
[1735672849085,8.09567432,194.64,194.59,6.575]
[1735672849276,8.09567432,194.63,194.59,6.575]
[1735672850984,8.09567432,194.63,194.56,8.09567432]
[1735672851805,8.09567432,194.63,194.57,8.09567432]
[1735672852009,8.09567432,194.63,194.56,8.09567432]
[1735672852293,8.09567432,194.63,194.57,8.09567432]
[1735672852587,8.09567432,194.64,194.57,8.09567432]
[1735672855496,8.09567432,194.63,194.57,8.09567432]
[1735672857071,8.09567432,194.63,194.56,8.09567432]
[1735672858166,8.09567432,194.63,194.57,8.09567432]
[1735672858371,8.09567432,194.64,194.57,8.09567432]
[1735672859093,7.13528214,194.7,194.6,8.09567432]
[1735672859394,8.09567432,194.67,194.6,8.09567432]
[1735672859571,8.09567432,194.66,194.59,28.09567432]
[1735672859973,8.09567432,194.65,194.59,20.0]
[1735672860273,8.09567432,194.64,194.58,20.0]
[1735672860467,39.51797942,194.7,194.56,8.09567432]
[1735672860468,8.09567432,194.63,194.56,8.09567432]
[1735672862284,8.09567432,194.62,194.55,21.1187]
[1735672862486,8.09567432,194.62,194.56,8.09567432]
[1735672862680,8.09567432,194.63,194.56,8.09567432]
[1735672862880,8.09567432,194.64,194.58,8.09567432]
[1735672863075,7.13528214,194.69,194.6,8.09567432]
[1735672863276,8.09567432,194.65,194.58,8.09567432]
[1735672863493,8.09567432,194.64,194.58,8.09567432]
[1735672863695,8.09567432,194.64,194.57,8.09567432]
[1735672863922,8.09567432,194.63,194.56,8.09567432]
[1735672866080,8.09567432,194.64,194.57,8.09567432]
[1735672866308,8.09567432,194.65,194.58,8.09567432]
[1735672866988,8.09567432,194.63,194.57,12.8485]
[1735672867181,8.09567432,194.64,194.57,20.94417432]
[1735672867692,8.09567432,194.65,194.58,8.09567432]
[1735672869387,8.09567432,194.64,194.57,20.94417432]
[1735672870282,8.09567432,194.65,194.57,20.94417432]
[1735672872499,8.09567432,194.64,194.57,12.8485]
[1735672872709,8.09567432,194.63,194.57,12.8485]
[1735672874602,8.09567432,194.63,194.55,16.36457432]
[1735672874804,8.09567432,194.62,194.55,8.2689]
[1735672875005,8.09567432,194.6,194.54,12.8506]
[1735672875301,8.09567432,194.58,194.51,28.69687432]
[1735672876408,8.09567432,194.54,194.47,12.8548]
[1735672876727,8.09567432,194.54,194.47,20.95047432]
[1735672876906,1.59,194.57,194.47,20.95047432]
[1735672876907,8.09567432,194.55,194.51,20.0]
[1735672877299,8.09567432,194.55,194.48,8.09567432]
[1735672877591,8.09567432,194.55,194.51,20.0]
[1735672878391,8.09567432,194.56,194.5,20.0]
[1735672879820,8.09567432,194.57,194.51,8.09567432]
[1735672880729,8.09567432,194.57,194.51,20.94847432]
[1735672881397,8.09567432,194.58,194.51,20.94847432]
[1735672882311,8.09567432,194.57,194.51,12.8528]
[1735672882815,8.09567432,194.56,194.51,12.8528]
[1735672883813,8.09567432,194.57,194.51,12.8528]
[1735672884516,8.09567432,194.58,194.51,20.94847432]
[1735672886417,8.09567432,194.57,194.51,12.8528]
[1735672886620,2.69987809,194.59,194.51,20.94847432]
[1735672886621,8.09567432,194.58,194.51,20.94847432]
[1735672887626,10.79555241,194.59,194.52,8.09567432]
[1735672888517,8.09567432,194.58,194.51,20.94847432]
[1735672889524,8.09567432,194.58,194.52,8.09567432]
[1735672890021,10.79555241,194.59,194.52,8.09567432]
[1735672890321,2.69987809,194.59,194.53,8.09567432]
[1735672890524,8.09567432,194.62,194.55,8.09567432]
[1735672890723,8.09567432,194.62,194.56,8.09567432]
[1735672891103,8.09567432,194.61,194.54,8.09567432]
[1735672891728,2.69987809,194.64,194.54,8.09567432]
[1735672891908,8.09567432,194.61,194.54,8.09567432]
[1735672892317,8.09567432,194.6,194.54,8.09567432]
[1735672895130,8.09567432,194.61,194.54,8.09567432]
[1735672896209,8.09567432,194.6,194.53,14.41497432]
[1735672896404,2.69987809,194.64,194.53,14.41497432]
[1735672896405,8.09567432,194.59,194.53,14.41497432]
[1735672897027,8.09567432,194.6,194.53,14.41497432]
[1735672897226,8.09567432,194.61,194.54,8.09567432]
[1735672897813,8.09567432,194.6,194.53,27.26607432]
[1735672898213,8.09567432,194.59,194.53,19.1704]
[1735672898625,8.09567432,194.58,194.53,6.3193]
[1735672898908,8.09567432,194.58,194.52,1.5616]
[1735672900843,8.09567432,194.6,194.52,9.65727432]
[1735672901038,8.09567432,194.6,194.53,8.09567432]
[1735672901215,8.09567432,194.59,194.52,22.50897432]
[1735672901617,8.09567432,194.59,194.52,14.4133]
[1735672902637,8.09567432,194.58,194.52,14.4133]
[1735672902835,8.09567432,194.58,194.52,1.5616]
[1735672903739,8.09567432,194.59,194.52,1.5616]
[1735672905035,8.09567432,194.58,194.52,1.5616]
[1735672906042,8.09567432,194.59,194.52,1.5616]
[1735672906246,28.09567432,194.6,194.52,9.65727432]
[1735672906540,8.09567432,194.58,194.52,1.5616]
[1735672907243,8.09567432,194.59,194.52,1.5616]
[1735672908641,8.09567432,194.6,194.53,8.09567432]
[1735672908839,8.09567432,194.61,194.54,8.09567432]
[1735672910345,20.0,194.64,194.52,1.5616]
[1735672910346,8.09567432,194.6,194.53,20.94707432]
[1735672910533,8.09567432,194.61,194.54,8.09567432]
[1735672916966,14.3945,194.67,194.56,8.09567432]
[1735672916967,1.552,194.67,194.56,8.09567432]
[1735672917130,8.09567432,194.65,194.58,8.09567432]
[1735672918150,8.09567432,194.65,194.58,20.94367432]
[1735672919031,8.09567432,194.64,194.58,20.94367432]
[1735672919355,5.70777746,194.68,194.59,8.09567432]
[1735672919543,5.70777746,194.68,194.58,1.5543]
[1735672919544,8.09567432,194.66,194.6,8.09567432]
[1735672919856,8.09567432,194.67,194.6,14.50757432]
[1735672920733,8.09567432,194.66,194.6,14.50757432]
[1735672921167,8.09567432,194.66,194.6,6.4119]
[1735672921672,5.70777746,194.68,194.6,6.4119]
[1735672921832,8.09567432,194.66,194.6,14.50757432]
[1735672922752,8.09567432,194.66,194.6,6.4119]
[1735672923145,8.09567432,194.63,194.6,6.4119]
[1735672923343,8.09567432,194.65,194.6,6.4119]
[1735672923542,8.09567432,194.64,194.6,6.4119]
[1735672923749,8.09567432,194.62,194.58,1.5543]
[1735672926258,8.09567432,194.61,194.55,6.4119]
[1735672926467,8.09567432,194.59,194.55,6.4119]
[1735672927050,8.09567432,194.6,194.55,6.4119]
[1735672927760,5.70777746,194.68,194.55,27.35737432]
[1735672927979,8.09567432,194.63,194.56,8.09567432]
[1735672928267,8.09567432,194.62,194.56,8.09567432]
[1735672928862,8.09567432,194.65,194.58,8.09567432]
[1735672929066,8.09567432,194.65,194.59,20.0]
[1735672929367,8.09567432,194.64,194.59,20.0]
[1735672929541,8.09567432,194.65,194.59,20.0]
[1735672929745,8.09567432,194.65,194.59,28.09567432]
[1735672930770,8.09567432,194.65,194.59,40.94277432]
[1735672931664,8.09567432,194.66,194.59,40.94277432]
[1735672932493,5.70777746,194.68,194.59,40.94277432]
[1735672932649,5.7348629,194.73,194.61,14.59577432]
[1735672932855,8.09567432,194.68,194.62,8.09567432]
[1735672933065,8.09567432,194.68,194.61,14.59577432]
[1735672933774,8.09567432,194.68,194.62,12.8455]
[1735672935183,5.70777746,194.72,194.61,6.5001]
[1735672935184,8.09567432,194.65,194.61,6.5001]
[1735672935363,8.09567432,194.64,194.61,6.5001]
[1735672935956,8.09567432,194.65,194.61,6.5001]
[1735672936172,8.09567432,194.64,194.61,6.5001]
[1735672936859,8.09567432,194.63,194.61,6.5001]
[1735672937259,8.09567432,194.64,194.61,6.5001]
[1735672937795,8.09567432,194.65,194.61,6.5001]
[1735672940860,8.09567432,194.64,194.61,6.5001]
[1735672942562,8.09567432,194.65,194.61,6.5001]
[1735672943181,8.09567432,194.64,194.61,6.5001]
[1735672944862,8.09567432,194.65,194.61,6.5001]
[1735672946677,8.09567432,194.64,194.6,21.5365]
[1735672946863,8.09567432,194.64,194.6,20.0]
[1735672949570,8.09567432,194.65,194.6,20.0]
[1735672950303,8.09567432,194.64,194.6,20.0]
[1735672950611,5.70777746,194.69,194.61,12.8462]
[1735672950767,8.09567432,194.67,194.61,12.8462]
[1735672951398,8.09567432,194.66,194.61,12.8462]
[1735672952087,8.09567432,194.65,194.6,20.0]
[1735672952266,8.09567432,194.64,194.6,20.0]
[1735672952991,8.09567432,194.65,194.6,20.0]
[1735672956415,8.09567432,194.65,194.58,12.8477]
[1735672958824,8.09567432,194.67,194.59,8.09567432]
[1735672960620,8.09567432,194.67,194.6,12.8468]
[1735672963321,8.09567432,194.66,194.6,12.8468]
[1735672964526,8.09567432,194.65,194.58,8.09567432]
[1735672964826,32.38269728,194.7,194.61,20.0]
[1735672964827,8.09567432,194.64,194.61,20.0]
[1735672965008,8.09567432,194.65,194.61,20.0]
[1735672970828,5.70777746,194.72,194.61,20.0]
[1735672971019,8.09567432,194.67,194.61,20.0]
[1735672972532,8.09567432,194.68,194.62,12.8455]
[1735672972715,8.09567432,194.7,194.62,27.34917432]
[1735672973228,8.09567432,194.69,194.62,27.34917432]
[1735672975342,8.09567432,194.69,194.63,1.6148]
[1735672980333,5.70777746,194.73,194.63,1.6148]
[1735672980547,13.80345178,194.73,194.66,8.09567432]
[1735672980843,8.09567432,194.74,194.67,28.09567432]
[1735672981244,8.09567432,194.73,194.67,20.0]
[1735672981432,8.09567432,194.74,194.67,28.09567432]
[1735672981833,8.09567432,194.73,194.67,12.8419]
[1735672982017,8.09567432,194.71,194.65,20.0]
[1735672983040,8.09567432,194.72,194.65,28.09567432]
[1735672983630,8.09567432,194.71,194.65,20.0]
[1735672983831,8.09567432,194.72,194.65,28.09567432]
[1735672984662,8.09567432,194.71,194.65,20.0]
[1735672985240,8.09567432,194.69,194.65,20.0]